bitfinex-derivatives/quotes_BNBF0:USTF0_20241225
["timestamp","ask_amount","ask_price","bid_price","bid_amount"]
[1735165610171,0.92594263,699.46,698.55,1.28094218]
[1735165610372,0.92594263,699.45,698.55,1.28094218]
[1735165610778,0.92594263,699.44,698.55,1.28094218]
[1735165610979,0.92594263,699.43,698.55,1.28094218]
[1735165611378,0.92594263,699.42,698.54,1.56725362]
[1735165611779,0.92594263,699.41,698.54,1.56725362]
[1735165611979,0.92594263,699.4,698.54,1.56725362]
[1735165612475,0.92594263,699.39,698.54,2.92346707]
[1735165612681,0.92594263,699.39,698.55,1.35621345]
[1735165612876,0.92594263,699.38,698.55,1.28094218]
[1735165613284,0.92594263,699.37,698.55,1.28094218]
[1735165613678,0.2857551,699.9,698.54,0.28631144]
[1735165613882,0.92612318,699.89,698.54,0.28631144]
[1735165614182,0.92612318,699.88,698.54,0.28631144]
[1735165614385,0.92612318,699.87,698.54,0.28631144]
[1735165614775,0.92612318,699.86,698.54,0.28631144]
[1735165614985,0.92612318,699.85,698.54,0.28631144]
[1735165615583,0.92612318,699.84,698.54,0.28631144]
[1735165615884,0.92612318,699.83,698.54,0.28631144]
[1735165616084,0.92612318,699.82,698.54,0.28631144]
[1735165616485,0.92612318,699.81,698.54,0.28631144]
[1735165616686,0.92612318,699.8,698.54,0.28631144]
[1735165617083,0.92612318,699.79,698.54,0.28631144]
[1735165617485,0.92612318,699.78,698.54,0.28631144]
[1735165617886,0.92612318,699.77,698.54,0.28631144]
[1735165618186,0.92612318,699.76,698.54,0.28631144]
[1735165618487,0.92612318,699.75,698.54,0.28631144]
[1735165618781,0.92612318,699.74,698.54,0.28631144]
[1735165618989,0.92612318,699.73,698.54,0.28631144]
[1735165619187,0.92612318,699.72,698.54,0.28631144]
[1735165619487,0.92612318,699.71,698.54,0.28631144]
[1735165619786,0.92612318,699.7,698.54,0.28631144]
[1735165620181,0.92612318,699.69,698.54,0.28631144]
[1735165620783,0.92612318,699.68,698.54,0.28631144]
[1735165620987,0.92612318,699.67,698.54,0.28631144]
[1735165621282,0.92612318,699.66,698.54,0.28631144]
[1735165621683,0.92612318,699.65,698.54,0.28631144]
[1735165621989,0.92612318,699.64,698.54,0.28631144]
[1735165622389,0.92612318,699.63,698.54,0.28631144]
[1735165622887,0.92612318,699.62,698.54,0.28631144]
[1735165623290,0.92612318,699.61,698.54,0.28631144]
[1735165623491,0.92612318,699.6,698.54,0.28631144]
[1735165623888,0.92612318,699.59,698.54,0.28631144]
[1735165624088,0.2857551,699.9,698.54,0.28631144]
[1735165624089,0.92612318,699.58,698.54,0.28631144]
[1735165624391,0.92612318,699.57,698.54,0.28631144]
[1735165624792,0.92612318,699.56,698.54,0.28631144]
[1735165624991,0.92612318,699.55,698.54,0.28631144]
[1735165625483,0.92612318,699.54,698.54,0.28631144]
[1735165625688,0.92612318,699.53,698.54,0.28631144]
[1735165625985,0.92612318,699.52,698.54,0.28631144]
[1735165626391,0.92612318,699.51,698.54,0.28631144]
[1735165626691,0.2857551,699.9,698.54,0.28631144]
[1735165626692,0.92612318,699.5,698.54,0.28631144]
[1735165626885,0.92612318,699.49,698.54,0.28631144]
[1735165627391,0.92612318,699.48,698.54,0.28631144]
[1735165627585,0.92612318,699.47,698.54,0.28631144]
[1735165627990,0.92612318,699.46,698.54,0.28631144]
[1735165628384,0.92612318,699.45,698.54,0.28631144]
[1735165628791,0.92612318,699.44,698.54,0.28631144]
[1735165629191,0.92612318,699.43,698.54,0.28631144]
[1735165629592,0.92612318,699.42,698.54,0.28631144]
[1735165629891,0.92612318,699.41,698.54,0.28631144]
[1735165630292,0.92612318,699.4,698.54,0.28631144]
[1735165630492,0.92612318,699.39,698.54,0.28631144]
[1735165630884,0.2857551,699.9,698.54,0.28631144]
[1735165630885,0.92612318,699.38,698.54,0.28631144]
[1735165631391,0.2857551,699.9,698.54,0.28631144]
[1735165631392,0.92612318,699.37,698.54,0.28631144]
[1735165631788,0.92612318,699.36,698.54,0.28631144]
[1735165632191,0.2857551,699.9,698.54,0.28631144]
[1735165632691,0.92626944,699.89,698.54,0.28631144]
[1735165632892,0.92626944,699.88,698.54,0.28631144]
[1735165633089,0.92626944,699.87,698.54,0.28631144]
[1735165633690,0.92626944,699.86,698.54,0.28631144]
[1735165634290,0.92626944,699.85,698.54,0.28631144]
[1735165634893,0.92626944,699.84,698.54,0.28631144]
[1735165635292,0.92626944,699.83,698.54,0.28631144]
[1735165635687,0.92626944,699.82,698.54,0.28631144]
[1735165636086,0.92626944,699.81,698.54,0.28631144]
[1735165636294,0.92626944,699.8,698.54,0.28631144]
[1735165636594,0.92626944,699.79,698.54,0.28631144]
[1735165636894,0.92626944,699.78,698.54,0.28631144]
[1735165637188,0.92626944,699.77,698.54,0.28631144]
[1735165637589,0.92626944,699.76,698.54,0.28631144]
[1735165637789,0.92626944,699.75,698.54,0.28631144]
[1735165638193,0.92626944,699.74,698.54,0.28631144]
[1735165638496,0.92626944,699.73,698.54,0.28631144]
[1735165638697,0.92626944,699.72,698.54,0.28631144]
[1735165638994,0.92626944,699.71,698.54,0.28631144]
[1735165639394,0.92626944,699.7,698.54,0.28631144]
[1735165639594,0.92626944,699.69,698.54,0.28631144]
[1735165640095,0.92626944,699.68,698.54,0.28631144]
[1735165640291,0.92626944,699.67,698.54,0.28631144]
[1735165640695,0.92626944,699.66,698.54,0.28631144]
[1735165640894,0.92626944,699.65,698.54,0.28631144]
[1735165641393,0.92626944,699.64,698.54,0.28631144]
[1735165641795,0.92626944,699.63,698.54,0.28631144]
[1735165641995,0.92626944,699.62,698.54,0.28631144]
[1735165642392,0.92626944,699.61,698.54,0.28631144]
[1735165642795,0.92626944,699.6,698.54,0.28631144]
[1735165642997,0.92626944,699.59,698.54,0.28631144]
[1735165643195,0.92626944,699.58,698.54,0.28631144]
[1735165643791,0.92626944,699.57,698.54,0.28631144]
[1735165644192,0.92626944,699.56,698.54,0.28631144]
[1735165644793,0.91301987,699.55,698.54,0.28631144]
[1735165644993,0.2857551,699.9,698.54,0.28631144]
[1735165647797,0.2857551,699.9,698.57,1.28094218]
[1735165648590,0.2857551,699.9,698.56,1.28094218]
[1735165649799,0.2857551,699.9,698.56,2.63770456]
[1735165649997,0.2857551,699.9,698.56,1.28094218]
[1735165650399,0.2857551,699.9,698.55,1.28094218]
[1735165651001,0.2857551,699.9,698.56,1.28094218]
[1735165654005,0.2857551,699.9,698.57,1.28094218]
[1735165654608,0.2857551,699.9,698.56,1.28094218]
[1735165655608,0.2857551,699.9,698.54,0.28631144]
[1735165657105,0.92044117,699.89,698.54,0.28631144]
[1735165657305,0.92044117,699.88,698.54,0.28631144]
[1735165657708,0.92044117,699.87,698.54,0.28631144]
[1735165658110,0.92044117,699.86,698.54,0.28631144]
[1735165658306,0.92044117,699.85,698.54,0.28631144]
[1735165658705,0.92044117,699.84,698.54,0.28631144]
[1735165658905,0.92044117,699.83,698.54,0.28631144]
[1735165659506,0.2857551,699.9,698.54,0.28631144]
[1735165659507,0.92044117,699.82,698.54,0.28631144]
[1735165659905,0.92044117,699.81,698.54,0.28631144]
[1735165660309,0.92044117,699.8,698.54,0.28631144]
[1735165660809,0.92044117,699.79,698.54,0.28631144]
[1735165661011,0.92044117,699.78,698.54,0.28631144]
[1735165661413,0.92044117,699.77,698.54,0.28631144]
[1735165661814,0.92044117,699.76,698.54,0.28631144]
[1735165662218,0.92044117,699.75,698.54,0.28631144]
[1735165662610,0.92044117,699.74,698.54,0.28631144]
[1735165662814,0.92044117,699.73,698.54,0.28631144]
[1735165663315,0.92044117,699.72,698.54,0.28631144]
[1735165663713,0.92044117,699.71,698.54,0.28631144]
[1735165663916,0.92044117,699.7,698.54,0.28631144]
[1735165664316,0.92044117,699.69,698.54,0.28631144]
[1735165664716,0.92044117,699.68,698.54,0.28631144]
[1735165665117,0.92044117,699.67,698.54,0.28631144]
[1735165665617,0.92044117,699.66,698.54,0.28631144]
[1735165665814,0.92044117,699.65,698.54,0.28631144]
[1735165666219,0.92044117,699.64,698.54,0.28631144]
[1735165666420,0.92044117,699.63,698.54,0.28631144]
[1735165666914,0.92044117,699.62,698.54,0.28631144]
[1735165667119,0.92044117,699.61,698.54,0.28631144]
[1735165667315,0.92044117,699.6,698.54,0.28631144]
[1735165667718,0.92044117,699.59,698.54,0.28631144]
[1735165668119,0.92044117,699.58,698.54,0.28631144]
[1735165668717,0.92044117,699.57,698.54,0.28631144]
[1735165668918,0.92044117,699.56,698.54,0.28631144]
[1735165669320,0.92044117,699.55,698.54,0.28631144]
[1735165669515,0.92044117,699.54,698.54,0.28631144]
[1735165669920,0.92044117,699.53,698.54,0.28631144]
[1735165670419,0.92044117,699.52,698.54,0.28631144]
[1735165671017,0.92044117,699.51,698.54,0.28631144]
[1735165671421,0.92044117,699.5,698.54,0.28631144]
[1735165671614,0.92044117,699.49,698.54,0.28631144]
[1735165672120,0.92044117,699.48,698.54,0.28631144]
[1735165672420,0.92044117,699.47,698.54,0.28631144]
[1735165672621,0.92044117,699.46,698.54,0.28631144]
[1735165672920,0.92044117,699.45,698.54,0.28631144]
[1735165673121,0.92044117,699.44,698.54,0.28631144]
[1735165673620,0.92044117,699.43,698.54,0.28631144]
[1735165674018,0.92044117,699.42,698.54,0.28631144]
[1735165674621,0.92044117,699.41,698.54,0.28631144]
[1735165674922,0.92044117,699.4,698.54,0.28631144]
[1735165675119,0.92044117,699.39,698.54,0.28631144]
[1735165675519,0.92044117,699.38,698.54,0.28631144]
[1735165675915,0.92044117,699.37,698.54,0.28631144]
[1735165676319,0.2857551,699.9,698.54,0.28631144]
[1735165676516,0.9204401,699.89,698.54,0.28631144]
[1735165676716,0.9204401,699.88,698.54,0.28631144]
[1735165677117,0.9204401,699.87,698.54,0.28631144]
[1735165677820,0.9204401,699.86,698.54,0.28631144]
[1735165678122,0.9204401,699.85,698.54,0.28631144]
[1735165678326,0.9204401,699.84,698.54,0.28631144]
[1735165678823,0.9204401,699.83,698.54,0.28631144]
[1735165679022,0.9204401,699.82,698.54,0.28631144]
[1735165679424,0.9204401,699.81,698.54,0.28631144]
[1735165679622,0.9204401,699.8,698.54,0.28631144]
[1735165680121,0.9204401,699.79,698.54,0.28631144]
[1735165680322,0.9204401,699.78,698.54,0.28631144]
[1735165680719,0.9204401,699.77,698.54,0.28631144]
[1735165681122,0.9204401,699.76,698.54,0.28631144]
[1735165681521,0.9204401,699.75,698.54,0.28631144]
[1735165681823,0.9204401,699.74,698.54,0.28631144]
[1735165682221,0.9204401,699.73,698.54,0.28631144]
[1735165682423,0.9204401,699.72,698.54,0.28631144]
[1735165682819,0.9204401,699.71,698.54,0.28631144]
[1735165683021,0.9204401,699.7,698.54,0.28631144]
[1735165683420,0.9204401,699.69,698.54,0.28631144]
[1735165683923,0.9204401,699.68,698.54,0.28631144]
[1735165684120,0.9204401,699.67,698.54,0.28631144]
[1735165684521,0.9204401,699.66,698.54,0.28631144]
[1735165684923,0.9204401,699.65,698.54,0.28631144]
[1735165685323,0.9204401,699.64,698.54,0.28631144]
[1735165685521,0.9204401,699.63,698.54,0.28631144]
[1735165685924,0.9204401,699.62,698.54,0.28631144]
[1735165686324,0.2857551,699.9,698.54,0.28631144]
[1735165686325,0.9204401,699.61,698.54,0.28631144]
[1735165686726,0.9204401,699.6,698.54,0.28631144]
[1735165686921,0.9204401,699.59,698.54,0.28631144]
[1735165687428,0.9204401,699.58,698.59,1.28094218]
[1735165687629,0.9204401,699.57,698.59,1.28094218]
[1735165688026,0.9204401,699.56,698.59,1.28094218]
[1735165688326,0.2857551,699.9,698.59,1.28094218]
[1735165688327,0.9204401,699.55,698.59,1.28094218]
[1735165688526,0.9204401,699.55,698.58,1.28094218]
[1735165688730,0.9204401,699.54,698.58,1.28094218]
[1735165689131,0.9204401,699.53,698.58,1.28094218]
[1735165689331,0.9204401,699.52,698.59,1.28094218]
[1735165689830,0.9204401,699.51,698.59,1.28094218]
[1735165690032,0.9204401,699.51,698.58,1.28094218]
[1735165690231,0.2857551,699.9,698.58,1.28094218]
[1735165690232,0.9204401,699.5,698.58,1.28094218]
[1735165690625,0.9204401,699.49,698.58,1.28094218]
[1735165691030,0.9204401,699.48,698.58,1.28094218]
[1735165691430,0.9204401,699.47,698.58,1.28094218]
[1735165691634,0.9204401,699.46,698.54,0.28631144]
[1735165692029,0.2857551,699.9,698.54,0.28631144]
[1735165692427,0.92007914,699.45,698.54,0.28631144]
[1735165692628,0.92007914,699.44,698.54,0.28631144]
[1735165693029,0.92007914,699.43,698.54,0.28631144]
[1735165693235,0.2857551,699.9,698.54,0.28631144]
[1735165693534,0.91993492,699.89,698.54,0.28631144]
[1735165693932,0.2857551,699.9,698.54,0.28631144]
[1735165693933,0.91993492,699.88,698.54,0.28631144]
[1735165694129,0.91993492,699.87,698.54,0.28631144]
[1735165694532,0.91993492,699.86,698.54,0.28631144]
[1735165694833,0.91993492,699.85,698.54,0.28631144]
[1735165695027,0.91993492,699.84,698.54,0.28631144]
[1735165695430,0.91993492,699.83,698.54,0.28631144]
[1735165695831,0.91993492,699.82,698.54,0.28631144]
[1735165696035,0.91993492,699.81,698.54,0.28631144]
[1735165696429,0.91993492,699.8,698.54,0.28631144]
[1735165696632,0.91993492,699.79,698.54,0.28631144]
[1735165697034,0.2857551,699.9,698.54,0.28631144]
[1735165697035,0.91993492,699.78,698.54,0.28631144]
[1735165697433,0.91993492,699.77,698.54,0.28631144]
[1735165697629,0.91993492,699.76,698.54,0.28631144]
[1735165698032,0.91993492,699.75,698.54,0.28631144]
[1735165698434,0.91993492,699.74,698.54,0.28631144]
[1735165698633,0.91993492,699.73,698.54,0.28631144]
[1735165699031,0.91993492,699.72,698.54,0.28631144]
[1735165699430,0.91993492,699.71,698.54,0.28631144]
[1735165699830,0.91993492,699.7,698.54,0.28631144]
[1735165700030,0.91993492,699.69,698.54,0.28631144]
[1735165700535,0.91993492,699.68,698.54,0.28631144]
[1735165700930,0.91993492,699.67,698.54,0.28631144]
[1735165701132,0.91993492,699.66,698.54,0.28631144]
[1735165701731,0.91993492,699.65,698.54,0.28631144]
[1735165702134,0.91993492,699.64,698.54,0.28631144]
[1735165702329,0.91993492,699.63,698.54,0.28631144]
[1735165702529,0.91993492,699.62,698.54,0.28631144]
[1735165702729,0.91993492,699.61,698.54,0.28631144]
[1735165702929,0.91993492,699.6,698.54,0.28631144]
[1735165703231,0.2857551,699.9,698.54,0.28631144]
[1735165703232,0.91993492,699.59,698.54,0.28631144]
[1735165703435,0.91993492,699.58,698.54,0.28631144]
[1735165703635,0.91993492,699.57,698.54,0.28631144]
[1735165704039,0.91993492,699.56,698.54,0.28631144]
[1735165704238,0.91993492,699.55,698.54,0.28631144]
[1735165704439,0.2857551,699.9,698.54,0.28631144]
[1735165704634,0.91963845,699.54,698.54,0.28631144]
[1735165705039,0.91963845,699.53,698.54,0.28631144]
[1735165705234,0.91963845,699.52,698.54,0.28631144]
[1735165705735,0.91963845,699.51,698.54,0.28631144]
[1735165705941,0.91963845,699.5,698.54,0.28631144]
[1735165706240,0.91963845,699.49,698.54,0.28631144]
[1735165706543,0.2857551,699.9,698.54,0.28631144]
[1735165707042,0.91958311,699.89,698.54,1.56725362]
[1735165707535,0.2857551,699.9,698.54,1.56725362]
[1735165707536,0.91958311,699.88,698.54,1.56725362]
[1735165707840,0.91958311,699.88,698.57,1.28094218]
[1735165708141,0.91958311,699.87,698.58,0.28629505]
[1735165708536,0.91958311,699.86,698.58,0.28629505]
[1735165708938,0.91958311,699.85,698.58,0.28629505]
[1735165709139,0.91958311,699.84,698.58,0.28629505]
[1735165709336,0.91958311,699.83,698.58,0.28629505]
[1735165709737,0.91958311,699.82,698.58,0.28629505]
[1735165709938,0.2857551,699.9,698.58,0.28629505]
[1735165709939,0.91958311,699.81,698.58,0.28629505]
[1735165710240,0.91958311,699.8,698.58,0.28629505]
[1735165710440,0.91958311,699.8,698.58,1.56723723]
[1735165710636,0.91958311,699.79,698.58,1.56723723]
[1735165711240,0.2857551,699.9,698.58,1.56723723]
[1735165711241,0.91958311,699.78,698.58,1.56723723]
[1735165711639,0.91958311,699.77,698.58,1.56723723]
[1735165711847,0.91958311,699.76,698.58,1.56723723]
[1735165712041,0.91958311,699.75,698.58,1.56723723]
[1735165712242,0.91958311,699.75,698.61,1.28094218]
[1735165712442,0.91958311,699.74,698.61,1.28094218]
[1735165712742,0.91958311,699.73,698.61,1.28094218]
[1735165713241,0.91958311,699.72,698.61,1.28094218]
[1735165713439,0.91958311,699.71,698.61,1.28094218]
[1735165713638,0.91958311,699.71,698.58,0.28629505]
[1735165713639,0.91958311,699.71,698.62,1.28094218]
[1735165713842,0.2857551,699.9,698.62,1.28094218]
[1735165714142,0.91942633,699.7,698.62,1.28094218]
[1735165714342,0.91942633,699.69,698.62,1.28094218]
[1735165714742,0.91942633,699.68,698.62,1.28094218]
[1735165715242,0.91942633,699.67,698.62,1.28094218]
[1735165715640,0.91942633,699.66,698.62,1.28094218]
[1735165715842,0.91942633,699.65,698.62,1.28094218]
[1735165716243,0.91942633,699.64,698.59,1.28094218]
[1735165716447,0.91942633,699.63,698.59,1.56723313]
[1735165716843,0.91942633,699.62,698.59,1.56723313]
[1735165717045,0.91942633,699.62,698.59,0.28629095]
[1735165717344,0.91942633,699.61,698.59,0.28629095]
[1735165717843,0.2857551,699.9,698.59,0.28629095]
[1735165717844,0.91942633,699.6,698.59,0.28629095]
[1735165718046,0.91942633,699.59,698.59,0.28629095]
[1735165718440,0.91942633,699.58,698.59,0.28629095]
[1735165718646,0.91942633,699.57,698.59,0.28629095]
[1735165719243,0.91942633,699.56,698.59,0.28629095]
[1735165719443,0.91942633,699.55,698.59,0.28629095]
[1735165719846,0.2857551,699.9,698.59,0.28629095]
[1735165720244,0.91921739,699.89,698.59,0.28629095]
[1735165720439,0.91921739,699.88,698.59,0.28629095]
[1735165721045,0.91921739,699.87,698.59,0.28629095]
[1735165721247,0.91921739,699.86,698.59,0.28629095]
[1735165721648,0.91921739,699.85,698.59,0.28629095]
[1735165721848,0.91921739,699.84,698.59,0.28629095]
[1735165722249,0.2857551,699.9,698.59,0.28629095]
[1735165722250,0.91921739,699.83,698.59,0.28629095]
[1735165722449,0.91921739,699.82,698.59,0.28629095]
[1735165722849,0.2857551,699.9,698.59,0.28629095]
[1735165722850,0.91921739,699.81,698.59,0.28629095]
[1735165723247,0.2857551,699.9,698.59,0.28629095]
[1735165723248,0.91921739,699.8,698.59,0.28629095]
[1735165723648,0.91921739,699.79,698.59,0.28629095]
[1735165724149,0.91921739,699.78,698.59,0.28629095]
[1735165724545,0.91921739,699.77,698.59,0.28629095]
[1735165725052,0.91921739,699.76,698.59,0.28629095]
[1735165725450,0.91921739,699.75,698.59,0.28629095]
[1735165725650,0.2857551,699.9,698.59,0.28629095]
[1735165725848,0.91746846,699.89,698.59,0.28629095]
[1735165726248,0.2857551,699.9,698.59,0.28629095]
[1735165726446,0.91747392,699.88,698.59,0.28629095]
[1735165726845,0.91747392,699.87,698.59,0.28629095]
[1735165727250,0.91747392,699.86,698.59,0.28629095]
[1735165727450,0.91747392,699.85,698.59,0.28629095]
[1735165727844,0.91747392,699.84,698.59,0.28629095]
[1735165728250,0.91747392,699.83,698.59,0.28629095]
[1735165728449,0.91747392,699.82,698.59,0.28629095]
[1735165728849,0.91747392,699.81,698.59,0.28629095]
[1735165729556,0.91747392,699.8,698.59,0.28629095]
[1735165729953,0.2857551,699.9,698.59,0.28629095]
[1735165729954,0.91747392,699.79,698.59,0.28629095]
[1735165730351,0.91747392,699.78,698.59,0.28629095]
[1735165730752,0.91747392,699.77,698.59,0.28629095]
[1735165730957,0.2857551,699.9,698.59,0.28629095]
[1735165731353,0.9166898,699.89,698.59,0.28629095]
[1735165731555,0.9166898,699.88,698.59,0.28629095]
[1735165731953,0.9166898,699.87,698.59,0.28629095]
[1735165732157,0.9166898,699.86,698.59,0.28629095]
[1735165732558,0.9166898,699.85,698.59,0.28629095]
[1735165732856,0.9166898,699.84,698.59,0.28629095]
[1735165733257,0.9166898,699.83,698.59,0.28629095]
[1735165733652,0.9166898,699.82,698.59,0.28629095]
[1735165733852,0.9166898,699.81,698.59,0.28629095]
[1735165734257,0.9166898,699.8,698.59,0.28629095]
[1735165734453,0.2857551,699.9,698.59,0.28629095]
[1735165734860,0.9162944,699.89,698.59,0.28629095]
[1735165735055,0.2857551,699.9,698.59,0.28629095]
[1735165735056,0.9162944,699.88,698.59,0.28629095]
[1735165735660,0.9162944,699.87,698.59,0.28629095]
[1735165735854,0.9162944,699.86,698.59,0.28629095]
[1735165736257,0.9162944,699.85,698.59,0.28629095]
[1735165736659,0.9162944,699.84,698.59,0.28629095]
[1735165736853,1.06536725,700.59,698.59,0.28629095]
[1735165736854,0.9162944,699.83,698.59,0.28629095]
[1735165737255,0.28548182,700.57,698.59,0.28629095]
[1735165737559,1.17879526,700.56,698.59,0.28629095]
[1735165737758,0.28549404,700.54,698.59,0.28629095]
[1735165737958,0.26271689,700.53,698.59,0.28629095]
[1735165738158,0.28550627,700.51,698.59,0.28629095]
[1735165738458,0.26271689,700.5,698.59,0.28629095]
[1735165738656,1.17879526,700.5,698.59,0.28629095]
[1735165738856,1.17879526,700.49,698.59,0.28629095]
[1735165739060,0.54823539,700.48,698.59,0.28629095]
[1735165739361,1.17879526,700.47,698.59,0.28629095]
[1735165739560,0.26271689,700.46,698.59,0.28629095]
[1735165739861,0.91607837,700.45,698.59,0.28629095]
[1735165740158,1.17879526,700.44,698.59,0.28629095]
[1735165740357,1.17879526,700.43,698.59,0.28629095]
[1735165740555,0.26271689,700.42,698.59,0.28629095]
[1735165740760,1.17879468,700.41,698.59,0.28629095]
[1735165741060,0.26271631,700.4,698.59,0.28629095]
[1735165741260,0.91607837,700.39,698.59,1.63445047]
[1735165741463,0.26271631,700.38,698.6,1.34815952]
[1735165741658,0.91607837,700.37,698.62,0.28627866]
[1735165741863,1.4643621,700.36,698.62,0.28627866]
[1735165742161,0.65045825,700.69,698.62,0.28627866]
[1735165742162,1.46436617,700.35,698.62,1.63443818]
[1735165742359,0.54829188,700.34,698.63,1.34815952]
[1735165742659,1.17879468,700.33,698.65,0.28626637]
[1735165742860,0.54830004,700.32,698.65,0.28626637]
[1735165743060,1.20166618,700.31,698.65,0.28626637]
[1735165743264,0.26271505,700.3,698.65,0.28626637]
[1735165743464,1.17879342,700.3,698.65,0.28626637]
[1735165743665,1.17879342,700.29,698.65,0.28626637]
[1735165743858,0.91607837,700.29,698.65,0.28626637]
[1735165744066,0.91607837,700.28,698.65,0.28626637]
[1735165744264,0.91607837,700.27,698.65,0.28626637]
[1735165744463,0.91607837,700.26,698.65,0.28626637]
[1735165744962,0.91607837,700.25,698.65,0.28626637]
[1735165745160,0.91607837,700.24,698.65,0.28626637]
[1735165745558,0.28558781,700.31,698.65,0.28626637]
[1735165745559,0.91607837,700.23,698.65,0.28626637]
[1735165745867,0.91607837,700.22,698.65,0.28626637]
[1735165746363,0.91607837,700.21,698.65,0.28626637]
[1735165746663,0.91607837,700.2,698.65,0.28626637]
[1735165747165,0.91607837,700.19,698.65,0.28626637]
[1735165747359,0.91607837,700.18,698.66,1.28094218]
[1735165747563,0.91607837,700.17,698.68,0.28625407]
[1735165747958,0.91607837,700.16,698.68,0.28625407]
[1735165748363,0.91607837,700.15,698.68,0.28625407]
[1735165748765,0.91607837,700.14,698.68,0.28625407]
[1735165749062,0.91607837,700.13,698.68,0.28625407]
[1735165749365,0.91607837,700.13,698.69,1.28094218]
[1735165749562,0.91607837,700.12,698.7,0.28624588]
[1735165749759,0.91607837,700.11,698.7,0.28624588]
[1735165750165,0.91607837,700.1,698.7,1.56718806]
[1735165750364,0.91607837,700.09,698.7,1.56718806]
[1735165750862,0.91607837,700.08,698.72,1.28094218]
[1735165751165,0.91607837,700.08,698.73,0.28623359]
[1735165751365,0.91607837,700.07,698.73,0.28623359]
[1735165751561,0.91607837,700.06,698.74,1.28094218]
[1735165751760,0.91607837,700.05,698.74,1.28094218]
[1735165752062,0.91607837,700.04,698.75,0.2862254]
[1735165752464,0.91607837,700.03,698.75,0.2862254]
[1735165752664,0.91607837,700.02,698.75,0.2862254]
[1735165753058,0.91607837,700.01,698.75,0.2862254]
[1735165753461,0.28558781,700.31,698.75,0.2862254]
[1735165753462,0.91607837,700.0,698.75,0.2862254]
[1735165753666,0.91607837,699.99,698.75,0.2862254]
[1735165754060,0.91607837,699.98,698.75,0.2862254]
[1735165754261,0.91607837,699.97,698.75,0.2862254]
[1735165754664,0.91607837,699.96,698.75,0.2862254]
[1735165754865,0.91607837,699.95,698.75,0.2862254]
[1735165755261,0.91607837,699.94,698.75,0.2862254]
[1735165755666,0.91607837,699.93,698.75,0.2862254]
[1735165756167,0.91607837,699.92,698.75,0.2862254]
[1735165756468,0.91607837,699.91,698.75,0.2862254]
[1735165756966,0.91607837,699.9,698.75,0.2862254]
[1735165757166,0.91607837,699.89,698.75,0.2862254]
[1735165757564,0.91607837,699.88,698.75,0.2862254]
[1735165757866,0.91607837,699.87,698.75,0.2862254]
[1735165758061,0.91607837,699.86,698.75,0.2862254]
[1735165758463,0.91607837,699.85,698.75,0.2862254]
[1735165758669,0.91607837,699.84,698.75,0.2862254]
[1735165758970,0.91607837,699.83,698.75,0.2862254]
[1735165759469,0.91607837,699.82,698.75,0.2862254]
[1735165759867,0.91607837,699.81,698.75,0.2862254]
[1735165760265,0.91607837,699.8,698.75,0.2862254]
[1735165760467,0.28558781,700.31,698.75,0.2862254]
[1735165760861,0.9161498,700.3,698.75,0.2862254]
[1735165761066,0.28559596,700.29,698.75,0.2862254]
[1735165761366,0.9161498,700.28,698.75,0.2862254]
[1735165761562,0.28560412,700.27,698.75,0.2862254]
[1735165761868,1.20175392,700.27,698.75,0.2862254]
[1735165762063,0.9161498,700.26,698.75,0.2862254]
[1735165762566,0.9161498,700.25,698.75,0.2862254]
[1735165763064,0.9161498,700.24,698.75,0.2862254]
[1735165763473,0.9161498,700.23,698.75,0.2862254]
[1735165763665,0.9161498,700.22,698.75,0.2862254]
[1735165764067,0.9161498,700.21,698.75,0.2862254]
[1735165764467,0.9161498,700.2,698.75,0.2862254]
[1735165764666,0.9161498,700.19,698.75,0.2862254]
[1735165765172,0.9161498,700.18,698.75,0.2862254]
[1735165765576,0.9161498,700.17,698.75,0.2862254]
[1735165765970,0.9161498,700.16,698.75,0.2862254]
[1735165766374,0.9161498,700.15,698.75,0.2862254]
[1735165766572,0.9161498,700.14,698.75,0.2862254]
[1735165767074,0.9161498,700.13,698.75,0.2862254]
[1735165767275,0.9161498,700.12,698.78,1.28094218]
[1735165767470,0.9161498,700.11,698.79,0.28620901]
[1735165767673,0.9161498,700.1,698.79,0.28620901]
[1735165767971,0.9161498,700.09,698.79,0.28620901]
[1735165768167,0.9161498,700.08,698.79,0.28620901]
[1735165768374,0.9161498,700.07,698.79,0.28620901]
[1735165768770,0.9161498,700.06,698.79,0.28620901]
[1735165769271,0.9161498,700.05,698.79,0.28620901]
[1735165769670,0.9161498,700.04,698.79,0.28620901]
[1735165769869,0.9161498,700.03,698.79,1.56715119]
[1735165770373,0.9161498,700.02,698.79,1.56715119]
[1735165770775,0.9161498,700.01,698.79,0.28620901]
[1735165771078,0.9161498,700.0,698.79,0.28620901]
[1735165771577,0.9161498,699.99,698.79,0.28620901]
[1735165771979,0.9161498,699.98,698.79,0.28620901]
[1735165772173,0.9161498,699.97,698.79,0.28620901]
[1735165772376,0.9161498,699.96,698.83,1.28094218]
[1735165772576,0.9161498,699.96,698.84,0.28618854]
[1735165772777,0.9161498,699.95,698.84,0.28618854]
[1735165773481,0.9161498,699.94,698.84,0.28618854]
[1735165773873,0.9161498,699.93,698.84,0.28618854]
[1735165774078,0.9161498,699.92,698.84,0.28618854]
[1735165774476,0.9161498,699.91,698.84,0.28618854]